Cogmind - Beta 15 @@@ ROGUE MODE // 2025.06.24 @ 03:47:22 Player: cptwinky Result: Destroyed by Executioner with Helical Railgun Performance ------------- Evolutions (7) 3500 Regions Visited (26) 5200 Robots Destroyed (347) 1735 Value Destroyed (13942) 13942 Prototype IDs (84) 1680 Alien Tech Used (6) 1200 Bonus (19020) 19020 TOTAL SCORE: 46277 Bonus ------- High Alert Combat Kills 1855 Follower Combat Kills 1492 Registered with UFD 300 Met Optimus in HQ 500 Met Zhirov 300 Destroyed Superfortress 15000 Met Optimus at Protoforge 1000 Friendly Fire -1427 Cogmind --------- Core Integrity 0/1300 Matter 219/300 Energy 1540/1560 System Corruption 18% Temperature Cool (0) Movement Rolling (80) Ox1 Location -3/Protoforge Parts ------- > --- POWER (3) -------- Light Antimatter Reactor Light Quantum Reactor Hybrid Graviton Reactor > --- PROPULSION (6) --- Overtuned Huge Scrapsphere Overtuned Huge Scrapsphere Overtuned Huge Scrapsphere > --- UTILITY (9) ------ 0bPrime Scrap Suit Experimental Optical Array Experimental Core Analyzer Makeshift Medium Armor Plating Makeshift Medium Armor Plating Makeshift Heavy Armor Plating Graphene Brace > --- WEAPON (3) ------- Helical Railgun Molecular Deconstructor > --- INVENTORY (5) ---- (None) Peak State ------------ > --- POWER ------------ Improved Quantum Reactor Hybrid Graviton Reactor Hybrid Graviton Reactor > --- PROPULSION ------- Experimental VSS Leg Overtuned Huge Scrapsphere Overtuned Huge Scrapsphere > --- UTILITY ---------- Scrap Suit Concept Phasing Heat Sink Experimental Optical Array Experimental Sensor Array Experimental Signal Interpreter Improved Phase Shifter Centrium Medium Armor Plating Graphene Brace > --- WEAPON ----------- Concept XC Strikerail Sigix Broadsword > --- INVENTORY -------- Experimental Kinecellerator Supercharged TR Concept XC Strikerail Molecular Deconstructor [Rating: 175] Favorites ----------- Power Micro Fission Core Engine Heavy Ion Engine Power Core Micro Fission Core Reactor Light Antimatter Reactor Propulsion Light Treads Treads Light Treads Leg Heavy Shield Leg Wheel Armored Huge Wheel Hover Unit Antigrav System Flight Unit Impulse Thruster Utility Experimental Signal Interpreter Device Advanced Heat Sink Storage Medium Storage Unit Processor Experimental Signal Interpreter Hackware Hacking Suite Protection Hardened Medium Armor Plating Weapon Heavy Beamcaster Energy Gun Heavy Beamcaster Energy Cannon Advanced Beam Cannon Ballistic Gun Gauss Rifle Ballistic Cannon Hardcell Cannon Launcher Micro-nuke Launcher Special Weapon Molecular Deconstructor Impact Weapon Heavy Hammer Slashing Weapon Makeshift Sword Piercing Weapon Lance Special Melee Weapon Datajack Build | -11 -10 -10 -9 -9 -9 -8 -8 -7 -7 -7 -7 -5 -5 -5 -5 -5 -5 -4 -4 -4 -4 -4 -4 -3 -3 -3 ------- Run | Yrd Mat Min Mat Min Exi Min Mat Fac Sto Rec Scr Fac Was Fac Upp Upp Zhi Pro Fac Was Fac Upp Upp Res Qua Frg Slots Evolved 14 | . . . 2 . . . 2 2 . . . 4 . . . . . . 2 . . . . 2 . . Power 2 | . . . . . . . . . . . . 1 . . . . . . . . . . . 1 . . Propulsion 4 | . . . 1 . . . . 1 . . . 2 . . . . . . . . . . . . . . Utility 7 | . . . 1 . . . 1 1 . . . 1 . . . . . . 2 . . . . 1 . . Weapon 1 | . . . . . . . 1 . . . . . . . . . . . . . . . . . . . Parts Attached 302 | 7 8 2 34 1 2 1 27 11 . 1 11 22 . 10 6 1 4 3 59 10 3 5 . 13 18 43 Power 39 | 1 1 . 3 . 1 . 2 2 . . . 6 . 3 2 . . . 5 1 1 1 . . 2 8 Engine 17 | 1 1 . 3 . 1 . 2 2 . . . 3 . 2 . . . . . . . . . . 1 1 Core 10 | . . . . . . . . . . . . 3 . 1 2 . . . 2 . 1 1 . . . . Reactor 12 | . . . . . . . . . . . . . . . . . . . 3 1 . . . . 1 7 Propulsion 78 | 2 . 1 13 . . . 10 1 . . 2 9 . 3 2 . 3 . 17 1 1 1 . 3 4 5 Treads 20 | 2 . . 10 . . . 6 . . . . . . . . . . . 1 . . 1 . . . . Leg 6 | . . . 3 . . . . . . . . . . . . . . . 1 . . . . . . 2 Wheel 11 | . . . . . . . . . . . . . . . . . . . 6 1 1 . . . . 3 Hover 34 | . . . . . . . 4 1 . . 2 9 . 3 2 . 3 . 9 . . . . . 1 . Flight 7 | . . 1 . . . . . . . . . . . . . . . . . . . . . 3 3 . Utility 103 | 1 4 1 8 1 . 1 7 6 . . 3 4 . 2 . . . 1 22 2 1 2 . 7 5 25 Device 45 | . 3 . 3 1 . . 1 3 . . . 1 . 1 . . . . 16 . . 1 . 5 1 9 Storage 7 | 1 . . 2 . . . . . . . . . . . . . . 1 2 . . . . . . 1 Processor 16 | . . . . . . . 1 1 . . 3 2 . . . . . . . 1 . . . . 2 6 Hackware 4 | . . . . . . . 1 1 . . . . . . . . . . . . . . . 1 1 . Protection 31 | . 1 1 3 . . 1 4 1 . . . 1 . 1 . . . . 4 1 1 1 . 1 1 9 Artifact . | . . . . . . . . . . . . . . . . . . . . . . . . . . . Weapon 82 | 3 3 . 10 . 1 . 8 2 . 1 6 3 . 2 2 1 1 2 15 6 . 1 . 3 7 5 Energy Gun 22 | 3 2 . 5 . . . 1 2 . . . . . . 1 . . . 3 3 . 1 . 1 . . Energy Cannon 5 | . . . 3 . . . . . . . . 1 . . . . . . 1 . . . . . . . Ballistic Gun 28 | . 1 . . . . . 4 . . . 4 2 . 2 1 . . 1 8 . . . . . 1 4 Ballistic Cannon 4 | . . . . . . . . . . . . . . . . 1 . . 1 . . . . 1 1 . Launcher 9 | . . . 1 . . . 2 . . . . . . . . . . . 2 3 . . . . 1 . Special Weapon 2 | . . . 1 . . . . . . . . . . . . . . . . . . . . . 1 . Impact Weapon 2 | . . . . . . . 1 . . . . . . . . . . . . . . . . 1 . . Slashing Weapon 7 | . . . . . . . . . . 1 2 . . . . . . 1 . . . . . . 2 1 Piercing Weapon 1 | . . . . . . . . . . . . . . . . . . . . . . . . . 1 . Special Melee Weapon 2 | . . . . . 1 . . . . . . . . . . . 1 . . . . . . . . . Unidentified Prototypes 33 | . . . 4 1 . . 2 1 . . 1 . . . . . 1 . 1 . . . . . 4 18 Corrupted Parts 1 | . . . . . . . . . . . . . . . . . . 1 . . . . . . . . System Corruption 9 | . . . . . . . . . . . . . . . . . . 9 . . . . . . . . Parts Lost 107 | . . 6 1 . . 1 14 . . . . 4 . 4 1 1 . . 35 . 1 . . 15 . 24 Power 18 | . . 1 . . . . . . . . . 1 . 1 . . . . 7 . 1 . . 1 . 6 Propulsion 28 | . . 2 . . . . 5 . . . . 2 . 2 1 1 . . 10 . . . . 3 . 2 Utility 40 | . . 1 1 . . 1 5 . . . . 1 . 1 . . . . 10 . . . . 8 . 12 Weapon 21 | . . 2 . . . . 4 . . . . . . . . . . . 8 . . . . 3 . 4 Highest Loss Streak 22 | . . 6 1 . . 1 9 . . . . 2 . 4 1 1 . . 22 . 1 . . 15 . 5 To Critical Strikes . | . . . . . . . . . . . . . . . . . . . . . . . . . . . Average Backups 13 | 3 6 5 15 20 20 19 19 9 9 10 9 8 8 8 9 10 9 10 12 23 24 24 23 21 3 3 Power . | . . . 1 2 2 2 1 1 1 . . . 1 1 1 1 1 1 . 1 1 . . . . . Propulsion 1 | 2 1 . 2 2 2 2 3 . . . . . . . . . . . 1 2 1 . . . . . Utility 5 | . 1 2 5 8 9 8 8 3 4 4 4 5 4 3 4 4 4 5 5 9 10 13 13 10 . . Weapon 4 | . 1 1 4 5 5 5 4 3 3 4 3 3 3 3 3 4 3 3 3 8 10 10 9 9 1 2 Tool/Special . | . . . . . . . . . . . . . . . . . . . . . . . . . . . Unused Backups 50 | . 6 . 9 . . . 7 2 1 1 4 2 . 2 2 . . . 1 . 1 2 . 7 . 3 Power 5 | . . . . . . . 1 1 . 1 . 1 . . . . . . . . . . . . . 1 Propulsion 9 | . 3 . 2 . . . 2 . . . . . . . 1 . . . . . . . . . . 1 Utility 21 | . 2 . 4 . . . 1 . 1 . 2 1 . 2 1 . . . . . 1 2 . 4 . . Weapon 13 | . 1 . 3 . . . 3 1 . . 1 . . . . . . . 1 . . . . 2 . 1 Tool/Special 2 | . . . . . . . . . . . 1 . . . . . . . . . . . . 1 . . Average Slot Usage (%) 89 | . 94 76 95 100 100 100 96 99 95 91 98 96 100 97 97 98 92 100 80 80 83 83 84 73 73 69 Engine 5 | . 14 12 10 11 11 11 9 7 7 7 7 7 . 1 3 . . . . 4 . . . . . 1 Core 2 | . . . . . . . . . . . . 2 11 9 7 11 11 11 4 . 1 4 5 3 . . Reactor 2 | . . . . . . . . . . . . . . . . . . . 3 5 7 5 5 3 3 7 Treads 11 | . 27 26 30 33 33 33 25 . . . . . . . . . . . 1 5 4 2 5 3 . . Wheel 3 | . . . . . . . . . . . . . . . . . . . 6 10 11 12 10 8 . 10 Hover 9 | . . . . . . . . 30 30 30 30 33 35 33 32 33 32 35 13 . . . . . . . Device 10 | . 9 . 11 11 11 11 13 6 4 . . 4 5 5 5 5 5 5 13 12 12 14 14 18 22 13 Storage 6 | . 9 . 10 11 11 11 9 7 7 7 7 5 5 5 5 5 5 5 4 5 5 5 5 3 . 1 Processor 8 | . . . . . . . . 14 15 15 15 14 17 17 17 17 17 17 12 12 15 15 15 10 10 9 Hackware 1 | . . . . . . . 4 7 7 7 7 5 5 3 . . . . . . . . . . 3 . Protection 6 | . 4 11 9 11 11 11 8 . 2 7 7 2 . . 5 5 5 5 3 10 7 5 5 4 2 8 Energy Gun 6 | . 24 12 2 19 12 18 5 14 15 9 . . . . . . . . 2 10 14 14 15 12 . . Energy Cannon 2 | . . . 18 2 . . . . . . . . . . . . . . . . . . . . . . Ballistic Gun 5 | . 3 12 . . . . 18 . . . 13 12 17 12 12 11 1 11 9 1 . . . . . 4 Slashing Weapon 1 | . . . . . . . . . . 3 7 3 . 3 2 4 5 4 . . . . . . 2 2 Peak Build Rating 175 | 6 11 11 24 29 22 22 36 52 52 49 57 91 91 93 92 93 100 107 119 123 123 124 124 130 154 175 Average Rating 74 | 5 8 9 19 21 20 21 28 47 47 46 52 80 91 89 86 91 88 105 100 112 119 118 123 117 125 150 On Entrance 66 | . 6 11 6 21 22 22 22 27 52 45 45 57 91 91 88 92 90 100 107 103 123 108 122 124 54 154 Naked Turns 1 | . . 1 . . . . . . . . . . . . . . . . . . . . . . . . Heaviest Build 141 | 14 30 30 62 61 60 62 69 30 30 31 33 49 43 45 46 43 39 47 136 139 139 141 135 140 32 98 Greatest Support 84 | 40 40 40 69 63 63 63 66 32 32 32 32 57 55 56 60 51 55 55 84 56 84 84 56 56 46 60 Greatest Overweight (x) 4 | 1 . . 1 . . . 2 . . . 1 1 . 1 . . . . 2 2 2 2 2 4 1 1 Average Overweight (x) . | . . . . . . . . . . . . . . . . . . . . 2 1 1 2 1 . . Largest Inventory Capacity 25 | 8 8 5 20 20 20 20 20 10 10 10 10 10 10 10 10 10 10 10 25 25 25 25 25 25 5 8 Average Capacity 14 | 7 7 5 16 20 20 20 19 10 10 10 10 10 10 10 10 10 10 10 17 25 25 25 25 23 5 5 Most Carried 25 | 6 8 5 20 20 20 20 20 10 10 10 10 10 9 10 10 10 10 10 25 25 25 25 25 25 5 8 Average Carried 13 | 3 6 5 15 19 19 19 19 9 9 9 9 9 9 9 9 10 9 10 13 24 24 24 24 22 4 4 Final Capacity 25 | 8 5 5 20 20 20 20 10 10 10 10 10 10 10 10 10 10 10 10 25 25 25 25 25 5 5 5 Final Carried 25 | 6 5 5 20 20 20 19 10 9 10 10 10 9 9 10 10 10 10 10 23 25 25 25 25 5 5 . Class Distribution -------------------- 32% | Mutant 16% | Scavenger-Mutant 14% | Tank 7% | Scavenger-Tank 6% | Scavenger-Scrapper 5% | Scavenger-Gunner 4% | Derelict-Mutant 3% | Scout Dominant Class ---------------- Mutant | -10/Materials Mutant | -10/Mines Mutant | -9/Materials Mutant | -9/Mines Scavenger-Mutant | -9/Exiles Mutant | -8/Mines Tank | -8/Materials Scout | -7/Factory Scout | -7/Storage Mutant | -7/Recycling Derelict-Mutant | -7/Scraptown Derelict-Mutant | -5/Factory Skirmisher | -5/Waste Mutant | -5/Factory Scavenger-Mutant | -5/Upper Caves Scavenger-Mutant | -5/Upper Caves Scavenger-Mutant | -5/Zhirov Scavenger-Mutant | -4/Proximity Caves Scavenger-Gunner | -4/Factory Tank | -4/Waste Tank | -4/Factory Skirmisher | -4/Upper Caves Tank | -4/Upper Caves Scavenger-Tank | -3/Research Sprinter | -3/Quarantine Scavenger-Scrapper | -3/Protoforge Resources | -11 -10 -10 -9 -9 -9 -8 -8 -7 -7 -7 -7 -5 -5 -5 -5 -5 -5 -4 -4 -4 -4 -4 -4 -3 -3 -3 ----------- Run | Yrd Mat Min Mat Min Exi Min Mat Fac Sto Rec Scr Fac Was Fac Upp Upp Zhi Pro Fac Was Fac Upp Upp Res Qua Frg Matter Collected 9805 | 213 165 . 500 30 . 93 811 189 . 64 110 691 . 637 277 82 227 361 1914 180 310 297 48 203 430 1973 Remotely 401 | . . . . . . . . . . . . . . . . . . . 401 . . . . . . . Salvage Created 14944 | 112 343 . 1756 1 . 109 1746 337 . 290 49 868 . 450 632 194 227 326 1842 219 257 311 . 1105 381 3389 Parts 693 | 9 20 . 126 1 . 11 69 10 . 10 . 42 . 20 29 7 2 9 104 2 13 4 . 34 15 156 Haulers Intercepted 13 | . . . 6 . . . 4 1 . . . 1 . . . . . . . . . . . 1 . . Recyclers Shooed 5 | . . . . . . . 2 . . . . 1 . 1 . . . . 1 . . . . . . . Parts Field Recycled . | . . . . . . . . . . . . . . . . . . . . . . . . . . . Retrieved Matter . | . . . . . . . . . . . . . . . . . . . . . . . . . . . Parts Self-Destructed 35 | . . . . . . . . . . . . . . . 16 5 2 10 . . . 2 . . . . Prevented . | . . . . . . . . . . . . . . . . . . . . . . . . . . . Kills | -11 -10 -10 -9 -9 -9 -8 -8 -7 -7 -7 -7 -5 -5 -5 -5 -5 -5 -4 -4 -4 -4 -4 -4 -3 -3 -3 ------- Run | Yrd Mat Min Mat Min Exi Min Mat Fac Sto Rec Scr Fac Was Fac Upp Upp Zhi Pro Fac Was Fac Upp Upp Res Qua Frg Combat Hostiles Destroyed 261 | . 9 . 36 . . 7 32 3 . . . 13 . 11 4 5 . 6 46 1 5 10 . 16 2 55 Melee 11 | . . . . . . . 2 . . . . 3 . . . . . . . . . . . . 2 4 Guns 132 | . 8 . 8 . . 1 14 2 . . . 7 . 2 4 . . 1 24 1 4 1 . 5 . 50 Cannons 28 | . . . 24 . . . . . . . . . . . . . . . 4 . . . . . . . AOE 80 | . . . 4 . . 6 12 1 . . . 3 . 9 . 5 . 5 18 . . 9 . 8 . . Classes Destroyed 30 | 1 5 . 5 . . . 3 . . . . 1 . . 2 1 . . 2 1 . . . . . 9 Worker 16 | . . . 1 . . . 3 2 . . . 3 . 2 . . . . 3 . 1 . . . 1 . Builder 12 | . . . . . . . 2 1 . . . 2 . 1 . . . . 5 . . . . 1 . . Tunneler 6 | 5 . . . 1 . . . . . . . . . . . . . . . . . . . . . . Hauler 13 | . . . 6 . . . 4 1 . . . 1 . . . . . . . . . . . 1 . . Recycler 11 | . . . 2 . . . 3 1 . 1 . 1 . 1 . . . . . . . . . . 2 . Minesweeper 1 | . . . . . . . . . . . . . . . . 1 . . . . . . . . . . Mechanic 6 | . . . 1 . . . . . . . . . . . . . . . . . . . . . . 5 Operator 5 | . 1 . 2 . . . 1 . . . . . . . . . . . . . . . . 1 . . Drone 14 | . . . . . . . . . . . . . . . . . . . . . . . . . . 14 Watcher 10 | . 1 . 1 . . . 2 . . . . 1 . 1 . . . . 2 . . . . 2 . . Swarmer 77 | . 3 . 11 . . 4 6 . . . . 7 . 4 1 5 . 5 18 . . 1 . 4 . 8 Saboteur 2 | . . . . . . . . . . . . . . . . . . . . . . . . . . 2 Grunt 88 | . 4 . 15 . . 3 17 3 . . . 2 . 7 3 . . . 14 . 1 4 . 7 1 7 Brawler 3 | . . . . . . . 1 . . . . . . . . . . . . . . . . . . 2 Duelist 6 | . . . . . . . 1 . . . . . . . . . . . . . . 4 . . . 1 Protector 2 | . . . . . . . . . . . . . . . . . . . 1 . . . . . . 1 Researcher 1 | . . . . . . . . . . . . . . . . . . . . . . . . . . 1 Sentry 19 | . . . 10 . . . 7 . . . . . . . . . . . 1 . . 1 . . . . Specialist 1 | . . . . . . . . . . . . . . . . . . . . . . . . . . 1 Hunter 12 | . . . . . . . . . . . . . . . . . . . 4 . 2 . . 5 . 1 Programmer 16 | . . . . . . . . . . . . 4 . . . . . . 8 . 2 . . . 1 1 Compactor 1 | . . . . . . . . . . . . . . . . . . . . 1 . . . . . . Hotshot 4 | . . . . . . . . . . . . . . . . . . . . . . . . . . 4 Striker 6 | . . . . . . . . . . . . . . . . . . . . . . . . . . 6 Executioner 6 | . . . . . . . . . . . . . . . . . . . . . . . . . . 6 V-Series 1 | . . . . . . . . . . . . . . . . . . . . . . . . . . 1 Subdweller 2 | . 2 . . . . . . . . . . . . . . . . . . . . . . . . . Ranger 2 | . . . . . . . . . . . . . . . 2 . . . . . . . . . . . Scrapoid 2 | . . . . . . . . . . . . . . . . . . . . . . . . . . 2 Scraphulk 1 | . . . . . . . . . . . . . . . . . . . . . . . . . . 1 Decomposer 6 | . . . . . . . . . . . . . . . 3 2 . . . . . 1 . . . . Packrat 2 | . . . . . . . . . . . . . . . . 1 . . . . . 1 . . . . Samaritan 5 | . . . . . . . . . . . . . . . 5 . . . . . . . . . . . Butcher 1 | . . . . . . . . . . . . . . . . . . 1 . . . . . . . . Best Kill Streak 23 | 4 3 . 7 1 . 4 7 3 . 1 . 6 . 7 4 5 . 5 23 1 2 8 . 8 2 12 Combat Bots Only 16 | . 2 . 5 . . 4 3 2 . . . 3 . 7 4 5 . 5 16 1 2 8 . 8 2 11 Max Kills in Single Turn 4 | 2 1 . 4 1 . 3 4 1 . 1 . 3 . 4 2 4 . 3 4 1 1 2 . 3 1 2 Gunslinging 1 | . . . . . . . . . . . . 1 . . 1 . . . 1 . . . . . . 1 Exploded 4 | . . . 3 . . 3 3 1 . . . 3 . 4 . 4 . 3 4 . . 2 . 3 . . Melee 1 | . . . . . . . 1 . . . . 1 . . . . . . . . . . . . 1 1 Uniques/NPCs Destroyed . | . . . . . . . . . . . . . . . . . . . . . . . . . . . Combat | -11 -10 -10 -9 -9 -9 -8 -8 -7 -7 -7 -7 -5 -5 -5 -5 -5 -5 -4 -4 -4 -4 -4 -4 -3 -3 -3 -------- Run | Yrd Mat Min Mat Min Exi Min Mat Fac Sto Rec Scr Fac Was Fac Upp Upp Zhi Pro Fac Was Fac Upp Upp Res Qua Frg Hostile Shots Fired 2110 | . 29 31 136 . . 23 224 5 56 . . 101 . 81 15 5 . 1 500 . 63 13 . 265 28 534 Missed 763 | . 11 8 36 . . 8 62 2 34 . . 33 . 37 5 2 . . 164 . 23 2 . 93 15 228 Hits 1347 | . 18 23 100 . . 15 162 3 22 . . 68 . 44 10 3 . 1 336 . 40 11 . 172 13 306 Melee 8 | . . . . . . . 4 . . . . . . . . . . . . . . . . . . 4 Projectile 1339 | . 18 23 100 . . 15 158 3 22 . . 68 . 44 10 3 . 1 336 . 40 11 . 172 13 302 AOE 23 | . . 22 . . . . . . . . . 1 . . . . . . . . . . . . . . Critical Strikes 46 | . . . 4 . . . 3 . 1 . . 3 . . . . . . 13 . . 1 . 2 3 16 Actively Blocked 20 | . . . . . . . . . . . . . . . . . . . . . . . . 1 3 16 Part Disruptions 3 | . . . . . . . . . . . . 1 . . . . . . . . . . . . . 2 Actively Blocked 1 | . . . . . . . . . . . . 1 . . . . . . . . . . . . . . Damage Taken 26457 | . 252 750 1243 . . 220 2652 14 234 . . 1284 . 733 171 45 . 16 6307 15 762 252 . 2948 329 8230 Core 3064 | . 49 123 124 . . 10 214 . 11 . . 234 . 110 . . . . 982 . 18 26 . 217 72 874 Absorbed by Shields 115 | . . . . . . . . . . . . 55 . . . . . . . . . . . 60 . . Reduced by Siege Mode 129 | . . . . . . . . . . . . . . . . . . . 80 . 30 . . 19 . . Redirected to Shielding 531 | . . . . . . . . . . . . 62 . . . . . . . . . . . . . 469 Ignored by Resistances 8 | . . . . . . . . . . . . . . . . . . . 8 . . . . . . . Regen/Repaired (Parts) 2156 | . 49 . 63 . . . . . . . . 103 . . . . . . 318 268 . . . . 195 1160 Core Remaining (%) 60 | 100 . 31 . . . 66 61 . . . 98 . . . . . . 65 . . . . 5 . . . Volleys Fired 735 | 6 25 . 97 . . 10 57 22 1 6 . 38 . 23 8 2 . 9 103 9 18 18 . 48 4 231 Largest 3 | 2 2 . 2 . . 2 3 2 2 2 . 3 . 3 3 1 . 3 3 3 3 3 . 3 1 3 Hottest 267 | 100 100 . 136 . . 112 112 75 115 75 . 90 . 91 91 36 . 96 205 243 267 243 . 250 54 99 Shots Fired 1388 | 12 48 . 190 . . 15 131 26 2 9 . 94 1 46 19 4 . 12 270 25 54 30 3 122 4 271 Gun 1104 | 12 48 . 60 . . 10 113 26 2 9 . 91 1 36 16 2 . 4 226 24 52 21 3 111 . 237 Cannon 174 | . . . 128 . . . . . . . . 2 . . . . . 6 28 . 2 . . 5 3 . Launcher 75 | . . . 2 . . 5 18 . . . . 1 . 10 3 2 . 2 16 1 . 9 . 6 . . Special 35 | . . . . . . . . . . . . . . . . . . . . . . . . . 1 34 Kinetic 684 | . . . . . . . 102 . . . . 91 1 36 16 2 . 4 192 . . . . . 3 237 Thermal 573 | 12 46 . 188 . . 10 11 14 1 3 . 2 . . . . . 6 62 24 54 21 3 116 . . Explosive 66 | . . . 2 . . 5 12 . . . . 1 . 10 3 2 . 2 16 1 . 9 . 3 . . Electromagnetic 30 | . 2 . . . . . 6 12 1 6 . . . . . . . . . . . . . 3 . . Robot Hit Streak 45 | 5 17 . 21 . . 8 21 4 . 4 . 8 . 8 9 4 . 6 12 5 18 20 . 12 . 45 Robot Miss Streak 7 | 1 1 . 3 . . 2 2 4 . 1 . 3 . 3 1 . . . 6 2 3 2 2 7 . 5 Penetration Max 2 | . . . . . . . . . . . . 1 . . 1 . . . 2 . . . . . . 2 Secondary Targets 19 | . . . . . . . 2 . . . . 2 . . 3 . . . 6 . 1 . . 1 . 4 Max Gunslinging Chain 1 | . . . . . . . 1 . . . . 1 . . 1 . . . 1 . 1 . . 1 . 1 Shots Hit Robots 975 | 9 39 . 117 . 4 8 95 16 . 5 2 76 . 31 27 7 7 7 164 13 31 10 . 69 13 225 Core Hits 609 | 5 17 . 57 1 . 14 69 6 . 4 1 30 . 41 14 7 3 11 120 7 10 23 . 48 5 116 Critical Kills 35 | . . . . . . . 1 1 . . . . . . 2 . . 1 4 . . . . . . 26 Critical Parts Destroyed 31 | . . . . . . . 2 . . . . 1 . . . . . . 12 . . . . . 1 15 Critical Strikes 105 | 1 5 . 2 . . . 4 1 . . . 4 . . 3 . . 1 23 4 2 1 . 8 1 45 Burn 24 | 1 5 . 2 . . . 1 . . . . . . . . . . . . 4 2 1 . 8 . . Destroy 65 | . . . . . . . . . . . . 1 . . 2 . . 1 18 . . . . . . 43 Blast 3 | . . . . . . . . . . . . . . . . . . . 3 . . . . . . . Smash 6 | . . . . . . . 3 1 . . . . . . . . . . . . . . . . 1 1 Sever 7 | . . . . . . . . . . . . 3 . . 1 . . . 2 . . . . . . 1 Melee Attacks 331 | . . . . . 4 . 22 23 . 4 2 55 . 43 18 42 7 13 29 . . . . 1 41 27 Impact 65 | . . . . . . . 22 23 . 2 . . . . . . . . . . . . . 1 12 5 Slashing 255 | . . . . . . . . . . 2 2 55 . 43 18 42 7 13 29 . . . . . 22 22 Piercing 7 | . . . . . . . . . . . . . . . . . . . . . . . . . 7 . Sneak Attacks 54 | . . . . . 4 . 1 4 . . . 8 . 6 18 4 . . 1 . . . . . 5 3 Combat Hostiles 1 | . . . . . . . . . . . . . . . . . . . . . . . . . 1 . Follow-up Attacks 3 | . . . . . . . . . . . . . . . . . . . . . . . . . 3 . Damage Inflicted 43450 | 124 507 6 2585 29 . 562 3559 652 . 102 144 2833 . 2099 1925 791 497 523 8733 395 879 2194 . 3723 1092 9496 Guns 20324 | 124 502 . 562 . . 120 1331 184 . 102 . 1349 . 418 284 . . 6 3364 319 841 163 . 2056 . 8599 Cannons 2369 | . . . 1745 . . . . . . . . . . . . . . . 586 . 38 . . . . . Explosions 12370 | . . . 249 . . 442 1611 46 . . . 234 . 987 280 451 . 243 4053 76 . 2031 . 1667 . . Melee 8214 | . . . . . . . 542 422 . . 144 1228 . 694 1361 340 497 274 723 . . . . . 1092 897 Ramming 173 | . 5 6 29 29 . . 75 . . . . 22 . . . . . . 7 . . . . . . . Kinetic 15324 | . . . . . . . 1171 . . . . 1349 . 418 284 . . 6 3497 . . . . . . 8599 Thermal 7536 | 124 490 . 2307 . . 120 160 84 . 18 . 64 . . . . . . 752 319 879 163 . 2056 . . Explosive 11169 | . . . 249 . . 442 1379 . . . . 170 . 987 280 451 . 243 3754 76 . 2031 . 1107 . . Electromagnetic 1034 | . 12 . . . . . 232 146 . 84 . . . . . . . . . . . . . 560 . . Impact 1165 | . . . . . . . 542 422 . . . . . . . . . . . . . . . . 112 89 Slashing 6952 | . . . . . . . . . . . 144 1228 . 694 1361 340 497 274 723 . . . . . 883 808 Piercing 97 | . . . . . . . . . . . . . . . . . . . . . . . . . 97 . Highest Corruption 18 | . . . . . . . 2 2 2 2 . 7 7 9 9 9 9 18 12 12 5 5 5 1 4 18 Average Corruption 6 | . . . . . . . 2 2 2 2 . 4 4 7 9 9 9 13 5 12 4 5 5 1 1 9 Corruption Purged 7 | . . . . . . . . . . . . 7 . . . . . . . . . . . . . . Corruption Blocked . | . . . . . . . . . . . . . . . . . . . . . . . . . . . Effects 280 | . . . . . . . 15 2 . 5 . 7 2 24 26 9 2 22 27 11 11 14 14 1 11 77 Message Errors 78 | . . . . . . . 4 . . 2 . 2 1 8 6 1 1 5 9 5 3 2 4 1 2 22 Matter Fused 57 | . . . . . . . 2 1 . 1 . 4 . 5 6 . . 6 3 3 . 4 3 . 3 16 Heat Flow Errors 26 | . . . . . . . 3 1 . . . . . 2 4 1 . 1 1 1 4 2 . . 2 4 Energy Discharges 35 | . . . . . . . 3 . . . . . . 3 3 2 . 5 6 . 2 2 1 . . 8 Parts Rejected 3 | . . . . . . . . . . . . . . . . . . . . 1 . . . . . 2 Parts Fused 1 | . . . . . . . . . . . . . . . 1 . . . . . . . . . . . Data Loss (minor) 44 | . . . . . . . 1 . . 1 . 1 . 2 5 3 . 2 4 . 2 4 2 . 3 14 Data Loss (major) 8 | . . . . . . . . . . . . . . 1 . . . 1 . 1 . . 1 . 1 3 Misfires 13 | . . . . . . . 1 . . 1 . . 1 2 1 2 . 1 1 . . . 3 . . . Alerts 5 | . . . . . . . 1 . . . . . . . . . 1 1 1 . . . . . . 1 Misdirections 1 | . . . . . . . . . . . . . . . . . . . . . . . . . . 1 Weapon Failures 9 | . . . . . . . . . . . . . . 1 . . . . 2 . . . . . . 6 Overload Shots 7 | . . . . . . . . 6 1 . . . . . . . . . . . . . . . . . Effects 2 | . . . . . . . . 1 1 . . . . . . . . . . . . . . . . . Heat Surge 1 | . . . . . . . . . 1 . . . . . . . . . . . . . . . . . Short Circuit 1 | . . . . . . . . 1 . . . . . . . . . . . . . . . . . . Overflow Damage 2903 | . . . 37 3 . 10 284 123 . . 23 151 . 178 477 212 39 57 474 . . 233 . 53 164 385 Projectiles 37 | . . . 37 . . . . . . . . . . . . . . . . . . . . . . . Explosions 802 | . . . . . . 10 109 . . . . . . . . . . . 397 . . 233 . 53 . . Melee 2064 | . . . . 3 . . 175 123 . . 23 151 . 178 477 212 39 57 77 . . . . . 164 385 Knockbacks 15 | . . . . . . . 3 2 . . . . . . . . . . 10 . . . . . . . Impact 6 | . . . . . . . 3 2 . . . . . . . . . . 1 . . . . . . . Kinetic 8 | . . . . . . . . . . . . . . . . . . . 8 . . . . . . . Secondary 1 | . . . . . . . . . . . . . . . . . . . 1 . . . . . . . Self-Inflicted Damage 405 | . . . . . . 52 120 . . . . 11 . 16 . . . . 54 . . . . 152 . . Shots 14 | . . . . . . 2 5 . . . . . . 1 . . . . 2 . . . . 4 . . Rammed 21 | . 2 1 4 2 . . 10 . . . . 1 . . . . . . 1 . . . . . . . Targets Rammed 24 | . 3 1 5 3 . . 10 . . . . 1 . . . . . . 1 . . . . . . . Kicked . | . . . . . . . . . . . . . . . . . . . . . . . . . . . Crushed 3 | . 1 . 1 1 . . . . . . . . . . . . . . . . . . . . . . Highest Temperature 366 | 99 147 . 366 . . 98 211 148 251 30 . 251 217 311 155 94 28 151 216 180 311 256 . 268 186 209 Average Temperature 71 | 36 36 . 99 . . 51 47 31 186 12 . 48 101 62 72 42 18 58 83 90 99 102 . 69 94 90 Received Heat Transfer 3740 | . 90 78 534 . . 45 1026 9 87 . . 72 . 126 36 . . . 868 . 18 30 . 46 9 666 Effects 5 | . . . 1 . . . . . . . . 2 . 1 . . . . . . . . . 1 . . Shutdowns 1 | . . . 1 . . . . . . . . . . . . . . . . . . . . . . . Energy Bleed 1 | . . . . . . . . . . . . . . . . . . . . . . . . 1 . . Interference 2 | . . . . . . . . . . . . 2 . . . . . . . . . . . . . . Matter Decay 1 | . . . . . . . . . . . . . . 1 . . . . . . . . . . . . Siege Activations 4 | . . . . . . . . . . . . . . . . . . . 1 . 2 . . 1 . . Total Turns 120 | . . . . . . . . . . . . . . . . . . . 30 . 55 . . 35 . . Longest Duration 38 | . . . . . . . . . . . . . . . . . . . 30 . 38 . . 35 . . Martial Activations . | . . . . . . . . . . . . . . . . . . . . . . . . . . . Shielding Activations . | . . . . . . . . . . . . . . . . . . . . . . . . . . . Robots Disrupted . | . . . . . . . . . . . . . . . . . . . . . . . . . . . Combat Hostiles . | . . . . . . . . . . . . . . . . . . . . . . . . . . . Robots Corrupted 10 | . . . . . . . 5 3 . . . . . . . . . . . . . . . 2 . . Combat Hostiles 6 | . . . . . . . 4 . . . . . . . . . . . . . . . . 2 . . Parts Fried 14 | . . . . . . . 5 3 . . . . . . . . . . . . . . . 4 1 1 Impact Corruptions 17 | . . . . 1 . . 6 6 . . . . . . . . . . . . . . . . 2 2 Robots Melted 3 | . 1 . . . . . . . . . . . . . . . . . . . 1 . . 1 . . Combat Hostiles 3 | . 1 . . . . . . . . . . . . . . . . . . . 1 . . 1 . . Parts Melted 40 | . 5 . 7 . . . 1 . . . . . . . . . . . . . 6 . . 20 . 1 Heat Transferred 14801 | 444 1776 . 4409 . . 259 407 124 . 37 . 50 . . . . . . 1338 814 1406 333 . 3404 . . Parts Sabotaged . | . . . . . . . . . . . . . . . . . . . . . . . . . . . Parts Stolen . | . . . . . . . . . . . . . . . . . . . . . . . . . . . Parts Stripped . | . . . . . . . . . . . . . . . . . . . . . . . . . . . Power Chain Reactions 2 | . . . . . . . . 1 . . . 1 . . . . . . . . . . . . . . Alert | -11 -10 -10 -9 -9 -9 -8 -8 -7 -7 -7 -7 -5 -5 -5 -5 -5 -5 -4 -4 -4 -4 -4 -4 -3 -3 -3 ------- Run | Yrd Mat Min Mat Min Exi Min Mat Fac Sto Rec Scr Fac Was Fac Upp Upp Zhi Pro Fac Was Fac Upp Upp Res Qua Frg Maximum Alert Level 5 | . . . 1 . . . 2 1 . . . 1 . 3 . . . . 5 2 2 . . 2 . 2 Low Security (%) 59 | 100 100 100 66 100 . 100 57 72 100 100 . 93 100 70 . . . . 1 . . . . 82 100 55 Level 1 18 | . . . 33 . . . 24 27 . . . 6 . 2 . . . . 23 1 91 . . 15 . 3 Level 2 14 | . . . . . . . 17 . . . . . . 18 . . . . 17 98 8 . . 2 . 41 Level 3 1 | . . . . . . . . . . . . . . 9 . . . . 9 . . . . . . . Level 4 4 | . . . . . . . . . . . . . . . . . . . 39 . . . . . . . Level 5 . | . . . . . . . . . . . . . . . . . . . 7 . . . . . . . High Security . | . . . . . . . . . . . . . . . . . . . . . . . . . . . Max Security . | . . . . . . . . . . . . . . . . . . . . . . . . . . . Peak Influence 1784 | 10 92 . 355 129 . 147 498 241 60 19 . 220 72 848 . . . . 1784 649 426 . . 424 199 651 Initial 619 | . . . . 129 . . 33 206 54 19 . . 72 43 . . . . . 619 275 . . . 162 51 Average 260 | 2 20 . 143 22 . 98 185 159 50 7 . 101 68 243 . . . . 885 513 345 . . 89 116 285 Influence Increases 11456 | 25 222 . 1173 5 . 197 1035 280 17 35 5 745 . 1131 121 126 5 188 2731 88 584 232 . 594 491 1426 Destroy 0b10 Robot/C 5440 | . 140 . 720 . . 140 640 60 . . . 260 . 380 100 100 . 140 1080 . 240 220 . 360 40 820 Destroy 0b10 Robot/NC 540 | 25 10 . 65 5 . . 75 25 . 20 5 40 . 30 . 5 5 5 75 . 10 . . 25 15 100 Destroy Leader 1034 | . 32 . 204 . . 20 162 10 . . . 34 . 72 10 10 . 20 204 . 30 . . 56 20 150 Allied During Kill 272 | . . . . . . . . 3 . . . . . 45 11 11 . 23 47 . 115 12 . 5 . . Successful Hack 370 | . 24 . 29 . . . 22 33 1 11 . 47 . 47 . . . . 42 . 30 . . 7 54 23 Select Force Hacks 50 | . . . . . . . . . . . . 50 . . . . . . . . . . . . . . Disable Machine 780 | . . . 45 . . . . 60 . . . 75 . 150 . . . . 240 . 60 . . 45 75 30 Anti-Garrison Action 200 | . . . . . . . . . . . . . . . . . . . 200 . . . . . . . Destroy Structure 1315 | . 1 . 35 . . 37 61 14 1 4 . 104 . 212 . . . . 528 88 54 . . 96 32 48 Partial Spotted 240 | . . . 15 . . . . . 15 . . 15 . 30 . . . . 15 . . . . . 75 75 Lose Combat Pursuer 1215 | . 15 . 60 . . . 75 75 . . . 120 . 165 . . . . 300 . 45 . . . 180 180 Influence Decreases 10815 | 25 222 . 842 336 . 110 668 614 86 86 5 537 146 345 675 207 218 188 962 1464 650 440 119 305 689 876 Entered New Map 2922 | . . . . 202 . . 54 248 66 32 . . 136 19 315 57 213 . . 1150 118 122 23 . 127 40 Time Decay 5819 | 25 222 . 564 134 . 100 474 286 20 54 5 347 10 286 350 140 5 182 592 254 362 318 96 135 262 596 Lost Part 1010 | . . . 10 . . 10 140 . . . . 40 . 40 10 10 . . 350 . 10 . . 150 . 240 Lost Ally 346 | . . . . . . . . 80 . . . . . . . . . 6 20 60 160 . . 20 . . Purge Threat 718 | . . . 268 . . . . . . . . 150 . . . . . . . . . . . . 300 . Squads Dispatched 82 | . 1 1 4 . . . 8 6 1 . . 10 . 12 . . . . 18 . 5 . . 6 5 5 Investigation 41 | . . 1 4 . . . 2 4 . . . 6 . 7 . . . . 8 . 2 . . 3 1 3 Extermination 16 | . . . . . . . . 2 . . . 2 . 2 . . . . 4 . 2 . . 1 2 1 Reinforcement 13 | . 1 . . . . . 2 . 1 . . 1 . 1 . . . . 2 . 1 . . 2 1 1 Assault 7 | . . . . . . . 3 . . . . . . 2 . . . . 2 . . . . . . . Garrison 5 | . . . . . . . 1 . . . . 1 . . . . . . 2 . . . . . 1 . Intercept . | . . . . . . . . . . . . . . . . . . . . . . . . . . . Searches Triggered . | . . . . . . . . . . . . . . . . . . . . . . . . . . . Construction Impeded 2 | . . . . . . . . . . . . . . . . . . . 1 . . . . 1 . . Haulers Reinforced 4 | . . . . . . . . . . . . 1 . . . . . . 1 . 1 . . 1 . . Active Scanning Responses . | . . . . . . . . . . . . . . . . . . . . . . . . . . . Cargo Convoy Interrupts . | . . . . . . . . . . . . . . . . . . . . . . . . . . . Stealth | -11 -10 -10 -9 -9 -9 -8 -8 -7 -7 -7 -7 -5 -5 -5 -5 -5 -5 -4 -4 -4 -4 -4 -4 -3 -3 -3 --------- Run | Yrd Mat Min Mat Min Exi Min Mat Fac Sto Rec Scr Fac Was Fac Upp Upp Zhi Pro Fac Was Fac Upp Upp Res Qua Frg Distress Signals 27 | . 1 . 2 . . . 6 1 . . . 3 . 2 . . . . 2 . . . . . . 10 Communications Jammed 12 | . . . . . . . . . . . . . . . . . . . 9 . 3 . . . . . Distress Signals 10 | . . . . . . . . . . . . . . . . . . . 7 . 3 . . . . . Times Spotted 614 | . 17 6 52 . . 7 71 7 7 . . 29 2 35 9 5 . 4 89 6 15 10 . 26 19 198 Peak Tracking Total 16 | . 4 4 5 . . 4 16 4 7 . . 5 2 8 5 5 . 5 14 2 5 8 . 6 7 16 Tactical Retreats 45 | . 1 . 2 . . . 4 3 . . . 6 . 5 . . . . 8 . 1 . . . 6 9 Traps | -11 -10 -10 -9 -9 -9 -8 -8 -7 -7 -7 -7 -5 -5 -5 -5 -5 -5 -4 -4 -4 -4 -4 -4 -3 -3 -3 ------- Run | Yrd Mat Min Mat Min Exi Min Mat Fac Sto Rec Scr Fac Was Fac Upp Upp Zhi Pro Fac Was Fac Upp Upp Res Qua Frg Traps Triggered 26 | . . . 3 . . . 1 2 1 . . 4 . 4 . . . . 5 . 3 . . . . 3 Indirectly . | . . . . . . . . . . . . . . . . . . . . . . . . . . . Trap Hack Attempts . | . . . . . . . . . . . . . . . . . . . . . . . . . . . Triggered . | . . . . . . . . . . . . . . . . . . . . . . . . . . . Disarmed . | . . . . . . . . . . . . . . . . . . . . . . . . . . . Reprogrammed . | . . . . . . . . . . . . . . . . . . . . . . . . . . . Reused . | . . . . . . . . . . . . . . . . . . . . . . . . . . . Traps Extracted . | . . . . . . . . . . . . . . . . . . . . . . . . . . . Installed . | . . . . . . . . . . . . . . . . . . . . . . . . . . . Triggered . | . . . . . . . . . . . . . . . . . . . . . . . . . . . Most Traps Carried 1 | . . . . . . . . . . . . . . . 1 . . . . . . . . . . . Machines | -11 -10 -10 -9 -9 -9 -8 -8 -7 -7 -7 -7 -5 -5 -5 -5 -5 -5 -4 -4 -4 -4 -4 -4 -3 -3 -3 ---------- Run | Yrd Mat Min Mat Min Exi Min Mat Fac Sto Rec Scr Fac Was Fac Upp Upp Zhi Pro Fac Was Fac Upp Upp Res Qua Frg Machines Disabled 59 | . . . 3 . . . . 4 . . . 5 . 10 2 1 . . 16 . 4 3 . 3 5 3 Max in Single Turn 5 | . . . 2 . . . . 1 . . . 2 . 1 1 1 . . 5 . 1 1 . 1 1 1 Garrison Access 6 | . . . . . . . 1 . . . . . . 2 . . . . 2 . . . . . . 1 Machines Repaired . | . . . . . . . . . . . . . . . . . . . . . . . . . . . Machines Dismantled 1 | . . . 1 . . . . . . . . . . . . . . . . . . . . . . . Machines Sabotaged . | . . . . . . . . . . . . . . . . . . . . . . . . . . . Overloaded Fab Kills 5 | . . . . . . . . . . . . 5 . . . . . . . . . . . . . . Hacking | -11 -10 -10 -9 -9 -9 -8 -8 -7 -7 -7 -7 -5 -5 -5 -5 -5 -5 -4 -4 -4 -4 -4 -4 -3 -3 -3 --------- Run | Yrd Mat Min Mat Min Exi Min Mat Fac Sto Rec Scr Fac Was Fac Upp Upp Zhi Pro Fac Was Fac Upp Upp Res Qua Frg Machines Accessed 125 | . 7 1 16 . 1 . 10 8 1 6 2 13 . 11 1 . 4 . 15 . 4 1 . 6 7 11 Terminals 55 | . 6 . 12 . . . 7 3 1 4 . 4 . 2 . . . . 4 . 2 . . 2 5 3 Fabricators 12 | . . . . . . . . 3 . . . 1 . 2 . . . . 1 . 1 . . . . 4 Repair Stations 13 | . 1 . 2 . . . . . . . . 3 . . . . . . 3 . . . . 2 1 1 Recycling Units 25 | . . . 2 . . . 1 . . 2 . 5 . 6 . . . . 4 . 1 . . 2 . 2 Scanalyzers 3 | . . . . . . . 2 1 . . . . . . . . . . . . . . . . . . Garrison Access 7 | . . . . . . . . 1 . . . . . 1 . . . . 3 . . . . . 1 1 Total Hacks 359 | . 19 1 51 . 1 . 35 26 1 14 27 40 . 30 1 . 17 . 27 . 10 1 . 12 23 23 Successful 200 | . 9 1 27 . 1 . 20 17 1 9 27 17 . 14 1 . 17 . 14 . 7 1 . 4 6 7 Failed 158 | . 9 . 24 . . . 15 9 . 5 . 23 . 16 . . . . 13 . 3 . . 8 17 16 Catastrophic 32 | . . . 3 . . . 3 2 . 1 . 4 . 1 . . . . 5 . 2 . . 2 5 4 Database Lockouts 1 | . 1 . . . . . . . . . . . . . . . . . . . . . . . . . Manual 139 | . 10 . 14 . . . 11 13 1 9 . 19 . 17 . . . . 9 . 5 1 . 5 11 14 Terminals 164 | . 16 . 40 . . . 17 13 1 11 . 16 . 4 . . . . 7 . 5 . . 2 19 13 Fabricators 29 | . . . . . . . . 8 . . . 2 . 8 . . . . 3 . 4 . . . . 4 Repair Stations 34 | . 3 . 5 . . . . . . . . 10 . . . . . . 7 . . . . 6 2 1 Recycling Units 55 | . . . 6 . . . 4 . . 3 . 12 . 16 . . . . 5 . 1 . . 4 . 4 Scanalyzers 16 | . . . . . . . 14 2 . . . . . . . . . . . . . . . . . . Garrison Access 13 | . . . . . . . . 3 . . . . . 2 . . . . 5 . . . . . 2 1 Terminal Hacks 100 | . 6 1 17 . 1 . 6 3 1 3 27 5 . 1 1 . 17 . 1 . . 1 . 1 5 3 Record 27 | . . . . . 1 . . . . . 21 . . . . . 5 . . . . . . . . . Part Schematic 4 | . . . . . . . . . . . . . . . . . 4 . . . . . . . . . Robot Analysis 17 | . 2 . 3 . . . . . . 1 6 1 . . . . 4 . . . . . . . . . Prototype ID Bank 10 | . . . 3 . . . 1 . . 1 . . . . . . 4 . . . . . . . 1 . Open Door 5 | . . 1 . . . . . . 1 . . . . . 1 . . . . . . 1 . 1 . . Branch Access Points 4 | . . . 1 . . . 1 1 . . . . . 1 . . . . . . . . . . . . Emergency Access Points 2 | . . . 1 . . . . . . . . . . . . . . . . . . . . . . 1 Terminal Index 2 | . . . 1 . . . . . . 1 . . . . . . . . . . . . . . . . Unreport Threat 6 | . . . 3 . . . . . . . . 1 . . . . . . . . . . . . 2 . Locate Traps 9 | . 1 . 3 . . . 1 . . . . . . . . . . . 1 . . . . . 1 2 Registered Components 4 | . 1 . 1 . . . . 1 . . . 1 . . . . . . . . . . . . . . Zone Layout 10 | . 2 . 1 . . . 3 1 . . . 2 . . . . . . . . . . . . 1 . Fabricator Hacks 10 | . . . . . . . . 4 . . . 1 . 1 . . . . 1 . 3 . . . . . Network Status 5 | . . . . . . . . 1 . . . 1 . 1 . . . . 1 . 1 . . . . . Load Schematic 2 | . . . . . . . . 1 . . . . . . . . . . . . 1 . . . . . Build 3 | . . . . . . . . 2 . . . . . . . . . . . . 1 . . . . . Repair Station Hacks 13 | . 2 . 3 . . . . . . . . 4 . . . . . . 3 . . . . 1 . . Scan Component 7 | . 1 . 1 . . . . . . . . 3 . . . . . . 1 . . . . 1 . . Repair 4 | . 1 . 1 . . . . . . . . 1 . . . . . . 1 . . . . . . . Refit 2 | . . . 1 . . . . . . . . . . . . . . . 1 . . . . . . . Recycling Unit Hacks 10 | . . . 2 . . . 1 . . 2 . 1 . 3 . . . . 1 . . . . . . . Retrieve Components 10 | . . . 2 . . . 1 . . 2 . 1 . 3 . . . . 1 . . . . . . . Scanalyzer 13 | . . . . . . . 11 2 . . . . . . . . . . . . . . . . . . Insert Component 5 | . . . . . . . 4 1 . . . . . . . . . . . . . . . . . . Analyze 8 | . . . . . . . 7 1 . . . . . . . . . . . . . . . . . . Garrison Access Hacks 3 | . . . . . . . . . . . . . . 1 . . . . 1 . . . . . . 1 Seal Access 3 | . . . . . . . . . . . . . . 1 . . . . 1 . . . . . . 1 Unauthorized Hacks 51 | . 1 . 5 . . . 2 8 . 4 . 6 . 8 . . . . 7 . 4 . . 2 1 3 Terminals 20 | . 1 . 3 . . . 1 1 . 4 . 1 . 2 . . . . 1 . 3 . . . 1 2 Track 3 | . 1 . . . . . . . . . . . . . . . . . . . 1 . . . . 1 Botnet 12 | . . . 2 . . . 1 1 . 2 . 1 . 1 . . . . 1 . 1 . . . 1 1 Disrupt 2 | . . . . . . . . . . . . . . 1 . . . . . . 1 . . . . . Operators 1 | . . . 1 . . . . . . . . . . . . . . . . . . . . . . . Skim 2 | . . . . . . . . . . 2 . . . . . . . . . . . . . . . . Fabricators 6 | . . . . . . . . 4 . . . 1 . 1 . . . . . . . . . . . . Prioritize 1 | . . . . . . . . 1 . . . . . . . . . . . . . . . . . . Liberate 2 | . . . . . . . . 1 . . . . . 1 . . . . . . . . . . . . Haulers 1 | . . . . . . . . 1 . . . . . . . . . . . . . . . . . . Overload 1 | . . . . . . . . . . . . 1 . . . . . . . . . . . . . . Recompile 1 | . . . . . . . . 1 . . . . . . . . . . . . . . . . . . Repair Stations 1 | . . . . . . . . . . . . . . . . . . . 1 . . . . . . . Patch 1 | . . . . . . . . . . . . . . . . . . . 1 . . . . . . . Recycling Units 20 | . . . 2 . . . 1 . . . . 4 . 5 . . . . 4 . 1 . . 2 . 1 Reject 3 | . . . 2 . . . 1 . . . . . . . . . . . . . . . . . . . Fedlink 16 | . . . . . . . . . . . . 4 . 4 . . . . 4 . 1 . . 2 . 1 Scraphulk 1 | . . . . . . . . . . . . . . 1 . . . . . . . . . . . . Scanalyzers . | . . . . . . . . . . . . . . . . . . . . . . . . . . . Garrison Access 4 | . . . . . . . . 3 . . . . . . . . . . 1 . . . . . . . Reprogram 1 | . . . . . . . . 1 . . . . . . . . . . . . . . . . . . Intercept 1 | . . . . . . . . 1 . . . . . . . . . . . . . . . . . . Watchers 1 | . . . . . . . . 1 . . . . . . . . . . . . . . . . . . Jam 1 | . . . . . . . . . . . . . . . . . . . 1 . . . . . . . Data Cores Recovered 2 | . . . 2 . . . . . . . . . . . . . . . . . . . . . . . Used 1 | . . . 1 . . . . . . . . . . . . . . . . . . . . . . . Hacking Detections 91 | . 6 . 13 . . . 10 6 . 5 . 10 . 9 . . . . 9 . 3 . . 3 7 10 Full Trace Events 11 | . . . 1 . . . 1 1 . . . 1 . 1 . . . . 2 . 1 . . 1 1 1 Feedback Events 3 | . . . . . . . . . . . . . . . . . . . 1 . . . . 1 . 1 Corruption 2 | . . . . . . . . . . . . . . . . . . . 1 . . . . . . 1 Hackware Fried 1 | . . . . . . . . . . . . . . . . . . . . . . . . 1 . . Feedback Blocked . | . . . . . . . . . . . . . . . . . . . . . . . . . . . Robot Schematics Acquired . | . . . . . . . . . . . . . . . . . . . . . . . . . . . Robots Built 2 | . . . . . . . . 2 . . . . . . . . . . . . . . . . . . Authchips . | . . . . . . . . . . . . . . . . . . . . . . . . . . . Time 134 | . . . . . . . . 134 . . . . . . . . . . . . . . . . . . Total Robot Build Rating 8 | . . . . . . . . 8 . . . . . . . . . . . . . . . . . . Part Schematics Acquired 8 | . . . . . . . 3 1 . . . . . . . . 4 . . . . . . . . . Parts Built 2 | . . . . . . . . 1 . . . . . . . . . . . . 1 . . . . . Authchips 1 | . . . . . . . . 1 . . . . . . . . . . . . . . . . . . Time 272 | . . . . . . . . 68 . . . . . . . . . . . . 204 . . . . . Total Part Build Rating 16 | . . . . . . . . 8 . . . . . . . . . . . . 8 . . . . . Parts Repaired 4 | . 1 . 1 . . . . . . . . 1 . . . . . . 1 . . . . . . . Time 175 | . 26 . 51 . . . . . . . . 44 . . . . . . 54 . . . . . . . Parts Recycled . | . . . . . . . . . . . . . . . . . . . . . . . . . . . Recycled Matter . | . . . . . . . . . . . . . . . . . . . . . . . . . . . Retrieved Matter . | . . . . . . . . . . . . . . . . . . . . . . . . . . . Retrieved Components 40 | . . . 19 . . . 9 . . 1 . 3 . 2 . . . . 6 . . . . . . . Parts Scanalyzed 4 | . . . . . . . 3 1 . . . . . . . . . . . . . . . . . . Part Schematics Acquired 4 | . . . . . . . 3 1 . . . . . . . . . . . . . . . . . . Parts Damaged . | . . . . . . . . . . . . . . . . . . . . . . . . . . . Bothacking | -11 -10 -10 -9 -9 -9 -8 -8 -7 -7 -7 -7 -5 -5 -5 -5 -5 -5 -4 -4 -4 -4 -4 -4 -3 -3 -3 ------------ Run | Yrd Mat Min Mat Min Exi Min Mat Fac Sto Rec Scr Fac Was Fac Upp Upp Zhi Pro Fac Was Fac Upp Upp Res Qua Frg Used RIF Installer . | . . . . . . . . . . . . . . . . . . . . . . . . . . . Robots Hacked 4 | . . . . . 4 . . . . . . . . . . . . . . . . . . . . . Non-combat 3 | . . . . . 3 . . . . . . . . . . . . . . . . . . . . . Combat 1 | . . . . . 1 . . . . . . . . . . . . . . . . . . . . . Robot Hacks Applied 4 | . . . . . 4 . . . . . . . . . . . . . . . . . . . . . parse_system 4 | . . . . . 4 . . . . . . . . . . . . . . . . . . . . . Relay Couplers Released 7 | . . . . . . . 4 . . . . . . 2 . . . . 1 . . . . . . . Machine Destruction 7 | . . . . . . . 4 . . . . . . 2 . . . . 1 . . . . . . . Fabnet Peak Effective % . | . . . . . . . . . . . . . . . . . . . . . . . . . . . Robots Rewired 4 | . . . . . . . . . . . . . . . . . . 2 . . . 2 . . . . Allies Hacked 1 | . . . . . . . . . . . . . . 1 . . . . . . . . . . . . Hacks Repelled . | . . . . . . . . . . . . . . . . . . . . . . . . . . . Allies | -11 -10 -10 -9 -9 -9 -8 -8 -7 -7 -7 -7 -5 -5 -5 -5 -5 -5 -4 -4 -4 -4 -4 -4 -3 -3 -3 -------- Run | Yrd Mat Min Mat Min Exi Min Mat Fac Sto Rec Scr Fac Was Fac Upp Upp Zhi Pro Fac Was Fac Upp Upp Res Qua Frg Total Allies 29 | . . . . 1 . . . 4 . . . . . 1 . . . 2 . 19 . 2 . . . . Largest Group 19 | . . . . 1 . . . 2 . . . . . 1 1 1 1 3 1 19 9 2 1 1 . . Highest-Rated Group 702 | . . . . 31 . . . 64 . . . . . 123 123 123 123 190 123 702 353 78 48 48 . . Highest-Rated Ally 123 | . . . . 31 . . . 32 . . . . . 123 123 123 123 123 123 50 50 48 48 48 . . Total Orders 5 | . . . . . . . . . . . . . . . 3 . 2 . . . . . . . . . STAY 2 | . . . . . . . . . . . . . . . 1 . 1 . . . . . . . . . FOLLOW 3 | . . . . . . . . . . . . . . . 2 . 1 . . . . . . . . . Ally Attacks 302 | . . . . . . . . 14 . . . . . 25 5 . . 5 25 179 30 6 . 13 . . Total Damage 11546 | . . . . . . . . 302 . . . . . 1062 37 . . 216 880 6808 1599 206 . 436 . . Kills 48 | . . . . . . . . . . . . . . 9 1 . . 1 13 12 9 1 . 2 . . Allies Corrupted 2 | . . . . . . . . 2 . . . . . . . . . . . . . . . . . . Allies Melted 1 | . . . . . . . . . . . . . . . . . . . 1 . . . . . . . Intel | -11 -10 -10 -9 -9 -9 -8 -8 -7 -7 -7 -7 -5 -5 -5 -5 -5 -5 -4 -4 -4 -4 -4 -4 -3 -3 -3 ------- Run | Yrd Mat Min Mat Min Exi Min Mat Fac Sto Rec Scr Fac Was Fac Upp Upp Zhi Pro Fac Was Fac Upp Upp Res Qua Frg Active Infowar (turns) 9506 | . 309 . 311 . . . 909 626 50 164 318 556 31 487 . . . 460 852 546 646 592 508 340 450 1351 Optics 2128 | . . . . . . . . 625 50 164 318 . . . . . . . . . . . . . . 971 Sensors 5039 | . . . . . . . . 498 22 . . 556 31 487 . . . 460 448 . . 592 508 339 450 648 Terrain 309 | . 309 . . . . . . . . . . . . . . . . . . . . . . . . . Structural 6 | . . . . . . . . . . . . . . . . . . . 2 . . . . 4 . . Traps 1142 | . . . 233 . . . 909 . . . . . . . . . . . . . . . . . . . Seismic 78 | . . . 78 . . . . . . . . . . . . . . . . . . . . . . . Cloaking 101 | . . . . . . . . . . . . . . . . . . . . . . . . 1 2 98 Jamming 1681 | . . . . . . . . . . . . . . . . . . . 489 546 646 . . . . . Robot Analysis Total 17 | . 2 . 3 . . . . . . 1 6 1 . . . . 4 . . . . . . . . . Derelict Logs Recovered 4 | . . . . 2 . . . . . . . . . . 1 . . 1 . . . . . . . . Drone Launches . | . . . . . . . . . . . . . . . . . . . . . . . . . . . Drone Recoveries . | . . . . . . . . . . . . . . . . . . . . . . . . . . . Exploration | -11 -10 -10 -9 -9 -9 -8 -8 -7 -7 -7 -7 -5 -5 -5 -5 -5 -5 -4 -4 -4 -4 -4 -4 -3 -3 -3 ------------- Run | Yrd Mat Min Mat Min Exi Min Mat Fac Sto Rec Scr Fac Was Fac Upp Upp Zhi Pro Fac Was Fac Upp Upp Res Qua Frg Turns Passed 19521 | 143 1071 173 2341 803 507 226 1757 627 50 164 663 876 31 638 787 285 109 534 1870 546 839 715 527 613 569 2057 Spaces Moved 16488 | 72 437 115 1166 495 310 124 707 886 104 349 1232 1115 67 948 1037 326 170 533 1490 327 542 489 399 341 974 1733 Core 85 | 9 . 5 . . . . . . . . . . . . . . . . 19 . . . . 52 . . Treads 3223 | 63 437 101 1022 495 310 124 658 . . . . . . . . . . . 13 . . . . . . . Legs 25 | . . . 25 . . . . . . . . . . . . . . . . . . . . . . . Wheels 3760 | . . . . . . . . . . . . . . . . . . . 513 327 542 489 399 266 . 1224 Hover 7761 | . . . . . . . 49 886 104 349 1232 1115 67 948 1037 326 170 533 945 . . . . . . . Flight 1634 | . . 9 119 . . . . . . . . . . . . . . . . . . . . 23 974 509 Fastest Speed 27 | 50 160 35 35 160 160 160 42 38 38 38 38 34 28 28 33 44 38 38 38 130 115 115 130 34 27 31 Average Speed 81 | 148 160 145 146 160 160 160 197 38 38 38 41 40 29 39 36 45 43 38 75 130 126 121 130 112 32 64 Slowest Speed 320 | 160 160 160 190 160 160 160 320 38 38 38 103 105 34 111 44 48 48 38 240 130 130 130 130 160 114 108 Overloaded Moves 12 | . . . . . . . . . . . . . . . . . . . 12 . . . . . . . Propulsion Burnouts . | . . . . . . . . . . . . . . . . . . . . . . . . . . . Robots Hopped 1 | . . . . . . . . . . . . . . . . . . . . . . . . . . 1 Potential Cave-ins 5 | . . . . . . . . 2 . . . . . . . . . . . . . . . . . 3 Cave-ins Triggered . | . . . . . . . . . . . . . . . . . . . . . . . . . . . Teleports 2 | . . . . . . . . . . . . . . . . . . . 1 . . . . . . 1 Exploration Rate (%) 54 | 4 67 37 93 97 64 32 81 22 29 94 91 28 67 30 88 47 60 60 29 93 15 71 37 10 83 50 Regions Visited 26 Branch Regions 15 Pre-discovered Areas 11 | . . . . 1 1 . . . . . 4 1 . . 1 . 3 . . . . . . . . . Known Exits Taken 16 | . . . 1 . . . 1 1 1 1 1 . . 1 1 1 1 1 . . 1 1 1 1 1 . Unknown Exits Taken 6 | 1 1 1 . 1 1 1 . . . . . . . . . . . . . . . . . . . . Scrap Searched 23 | . . . . 4 . . . . . . 8 . . . 4 2 . 1 . . . 3 1 . . . Spaces Dug 215 | . . . 11 . . 17 18 16 . 4 . 15 . 29 . 29 . 30 12 . . . . 6 16 12 Terrain Destroyed 936 | . . . 45 . . 49 73 17 1 4 . 58 . 50 19 56 . 30 280 23 1 110 . 65 16 39 Melee 124 | . . . . . . . 6 11 . 4 . 7 . 28 . 29 . 8 9 . . . . 1 14 7 Projectile 93 | . . . . . . . . 6 1 . . 4 . 4 2 . . 6 22 5 1 1 . 7 2 32 AOE 715 | . . . 45 . . 49 67 . . . . 46 . 17 17 27 . 16 247 18 . 109 . 57 . . Terrain Rammed . | . . . . . . . . . . . . . . . . . . . . . . . . . . . Walls Destroyed . | . . . . . . . . . . . . . . . . . . . . . . . . . . . Machines Disabled . | . . . . . . . . . . . . . . . . . . . . . . . . . . . Actions | -11 -10 -10 -9 -9 -9 -8 -8 -7 -7 -7 -7 -5 -5 -5 -5 -5 -5 -4 -4 -4 -4 -4 -4 -3 -3 -3 --------- Run | Yrd Mat Min Mat Min Exi Min Mat Fac Sto Rec Scr Fac Was Fac Upp Upp Zhi Pro Fac Was Fac Upp Upp Res Qua Frg Total 20876 | 93 766 118 1603 504 318 136 924 1110 111 364 1387 1397 77 1126 1412 416 199 833 1970 431 657 581 407 466 1153 2317 Wait 2267 | 3 263 1 210 . . . 45 147 1 . 125 128 11 76 318 41 4 196 203 62 77 32 6 43 97 178 Move 16462 | 71 436 114 1165 494 309 123 706 885 103 348 1231 1115 66 947 1036 325 169 532 1490 326 541 488 398 340 973 1731 Hop 1 | . . . . . . . . . . . . . . . . . . . . . . . . . . 1 Pick Up 154 | 6 9 . 30 1 1 . 20 10 1 1 6 4 . 5 6 . 2 . 21 6 7 4 1 1 5 7 Fast Attach 223 | 6 4 2 18 1 . . 8 2 . 1 8 15 . 7 5 2 6 3 47 9 1 1 . 7 20 50 Attach 74 | . . . 5 . . 1 11 6 . . 1 3 . 2 . . 2 . 12 2 1 1 . 6 5 16 Detach 63 | . 2 . 12 1 . . . 1 1 . 1 1 . 1 . . 3 . 15 6 . . . 1 2 16 Swap 188 | 1 7 . 24 2 3 2 22 6 3 1 2 18 . 15 8 2 . 11 22 2 5 12 1 14 2 3 Drop 238 | . 16 . 33 2 1 . 23 8 1 3 11 12 . 7 12 2 6 3 27 9 7 5 1 5 14 30 Fire 735 | 6 25 . 97 . . 10 57 22 1 6 . 38 . 23 8 2 . 9 103 9 18 18 . 48 4 231 Melee 320 | . . . . . 4 . 22 23 . 4 2 55 . 43 18 42 7 13 29 . . . . 1 31 26 Ram 1 | . . . . . . . . . . . . 1 . . . . . . . . . . . . . . Kick . | . . . . . . . . . . . . . . . . . . . . . . . . . . . Crush 23 | . 3 1 5 3 . . 10 . . . . . . . . . . . 1 . . . . . . . Escape Stasis 23 | . . . . . . . . . . . . 7 . . . . . . . . . . . . . 16 Rewire 88 | . . . . . . . . . . . . . . . . . . 66 . . . 20 . . . 2 Trap . | . . . . . . . . . . . . . . . . . . . . . . . . . . . Miscellaneous 16 | . 1 . 4 . . . . . . . . . . . 1 . . . . . . . . . . 10 Route ------- -11/Scrapyard -10/Materials (discovered 4 exits: *Mat x2 / *Min / [*Sub]) -10/Mines -9/Materials (discovered 4 exits: *Mat x3 / *Min) -9/Mines (discovered 3 exits: *Mat x2 / *Exi) -9/Exiles -8/Mines -8/Materials (discovered 3 exits: *Fac x3) -7/Factory (discovered 4 exits: *Sto x2 / *Low x2) -7/Storage -7/Recycling (discovered 2 exits: *Fac / *Scr) -7/Scraptown (discovered 2 exits: *Fac x2) -5/Factory (discovered 2 exits: *Fac / Ext) -5/Waste -5/Factory (discovered 6 exits: *Fac x2 / *Upp x2 / Ext x2) -5/Upper Caves -5/Upper Caves (discovered 2 exits: Fac / *Zhi) -5/Zhirov -4/Proximity Caves -4/Factory (discovered 3 exits: *Res x2 / *Upp) -4/Waste -4/Factory -4/Upper Caves -4/Upper Caves -3/Research (discovered 2 exits: *Qua x2) -3/Quarantine (discovered 2 exits: [*Sec] / *Frg) -3/Protoforge History --------- Turn | Location | Event 5 | -11/Scrapyard | Discovered new exit (range 15) 144 | -11/Scrapyard | Entered Materials 306 | -10/Materials | Build established: Mutant 608 | -10/Materials | Discovered new exit (range 6) 644 | -10/Materials | Derelicts attacked the area 663 | -10/Materials | Repaired Lgt. Treads 790 | -10/Materials | Discovered new exit (range 8) 894 | -10/Materials | Central database locked down 1027 | -10/Materials | Discovered new exit (range 6) 1196 | -10/Materials | Discovered new exit (range 11) 1215 | -10/Materials | Entered Mines 1357 | -10/Mines | Discovered new exit (range 11) 1377 | -10/Mines | Met a Derelict shopkeep closing up shop 1381 | -10/Mines | Core integrity fell below 50% 1388 | -10/Mines | Entered Materials 1388 | -9/Materials | Evolved 2 slots: Propulsion x1, Utility x1 1411 | -9/Materials | Lost 6 parts (1p2n1u2w) 1428 | -9/Materials | Identified exit to Mines 1854 | -9/Materials | Discovered new exit (range 5) 2134 | -9/Materials | Discovered new exit (range 16) 2775 | -9/Materials | Repaired Adv. Beam Cannon 3234 | -9/Materials | Discovered new exit (range 11) 3729 | -9/Materials | Entered Mines 3861 | -9/Mines | Deemed a non-threat by the Exiles lab entrance 3925 | -9/Mines | Found a damaged Exp. Sensor Array with a note attached 3929 | -9/Mines | Found Prototype Device 3929 | -9/Mines | Identified Exp. Sensor Array 4125 | -9/Mines | Received a Mining Laser from a helpful Derelict 4130 | -9/Mines | Discovered new exit (range 8) 4232 | -9/Mines | Learned location of Recycling (-7) 4330 | -9/Mines | Discovered new exit (range 14) 4332 | -9/Mines | Learned Materials terminal intel 4524 | -9/Mines | Discovered new exit (range 5) 4532 | -9/Mines | Entered Exiles 4577 | -9/Exiles | Met 8R-AWN 4607 | -9/Exiles | Met EX-HEX 4668 | -9/Exiles | Met EX-DEC 4868 | -9/Exiles | Learned location of Zion (-6) 4883 | -9/Exiles | Build established: Scavenger-Mutant 4905 | -9/Exiles | Met EX-BIN 5023 | -9/Exiles | Discovered new exit (range 10) 5039 | -9/Exiles | Entered Mines 5198 | -8/Mines | Discovered new exit (range 5) 5265 | -8/Mines | Entered Materials 5265 | -8/Materials | Evolved 2 slots: Utility x1, Weapon x1 5266 | -8/Materials | Loaded intel: 12 terminal locations 5328 | -8/Materials | Build established: Mutant 6048 | -8/Materials | Build established: Tank 6471 | -8/Materials | Discovered new exit (range 17) 6833 | -8/Materials | Discovered new exit (range 20) 6865 | -8/Materials | First assault squad dispatched 6890 | -8/Materials | Garrison activated, responded to threat 7008 | -8/Materials | Lost 9 parts (2n3u4w) 7014 | -8/Materials | Discovered new exit (range 16) 7022 | -8/Materials | Identified exit to Factory 7022 | -8/Materials | Entered Factory 7022 | -7/Factory | Evolved 2 slots: Propulsion x1, Utility x1 7119 | -7/Factory | Identified exit to Storage 7119 | -7/Factory | Identified exit to Lower Caves 7254 | -7/Factory | Fabricated Y-54 Guardian? 7335 | -7/Factory | Build established: Scout 7432 | -7/Factory | Fabricated Exp. Sensor Array? 7649 | -7/Factory | Entered Storage 7698 | -7/Storage | Used back door to open Recycling access 7698 | -7/Storage | Discovered new exit (range 4) 7699 | -7/Storage | Identified exit to Recycling 7699 | -7/Storage | Entered Recycling 7833 | -7/Recycling | Discovered new exit (range 5) 7854 | -7/Recycling | Scanned before Scraplab entrance 7859 | -7/Recycling | Entered Scraplab 7862 | -7/Recycling | Discovered new exit (range 2) 7862 | -7/Recycling | Identified exit to Scraptown 7863 | -7/Recycling | Entered Scraptown 7863 | -7/Scraptown | System corruption cleaned by C-Scrubber 7881 | -7/Scraptown | Heard Great Nut preacher, LISTEN AND RECITE! 7952 | -7/Scraptown | Build established: Mutant 7955 | -7/Scraptown | Discovered new exit (range 11) 7976 | -7/Scraptown | Visited Bundlers 8008 | -7/Scraptown | Visited Cave Peace 8025 | -7/Scraptown | Visited Awakened 8036 | -7/Scraptown | Visited Red Mages 8043 | -7/Scraptown | Visited Cyclists 8045 | -7/Scraptown | Visited Assassins FH 8078 | -7/Scraptown | Visited UFD Registry 8078 | -7/Scraptown | Registered with UFD as "Datacycle" 8091 | -7/Scraptown | Visited Research Penetration Think Tank 8101 | -7/Scraptown | Visited Infowarlord's Domain 8103 | -7/Scraptown | Found Exp. Signal Interpreter 8113 | -7/Scraptown | Visited Chapter 10 8120 | -7/Scraptown | Visited DA-N13 Charitable Foundation 8122 | -7/Scraptown | Found DCF Scrap (29 items) 8148 | -7/Scraptown | Visited Analyses Database 8158 | -7/Scraptown | Visited Scrapoid Research Area 8164 | -7/Scraptown | Visited Derelict Rescue Squad 8169 | -7/Scraptown | Found DRS Beacon 8178 | -7/Scraptown | Visited A0-MCA Data Center 8180 | -7/Scraptown | Given an S rating by A0-MCA 8182 | -7/Scraptown | Found Prototype Processor 8182 | -7/Scraptown | Identified Expert System 8185 | -7/Scraptown | Found A0-MCA's Component Scanner 8196 | -7/Scraptown | Visited Science Testing Area 8272 | -7/Scraptown | Visited Cartography Club 8303 | -7/Scraptown | Found Deep Structural Scanner 8308 | -7/Scraptown | Learned location of Upper Caves (-4) 8308 | -7/Scraptown | Learned location of Warlord (-4) 8308 | -7/Scraptown | Learned 4 Access zone layouts 8308 | -7/Scraptown | Learned 4 Mines zone layouts 8308 | -7/Scraptown | Learned 12 Lower Caves zone layouts 8308 | -7/Scraptown | Learned 16 Lower Caves zone layouts 8308 | -7/Scraptown | Learned 20 Upper Caves zone layouts 8308 | -7/Scraptown | Learned 24 Upper Caves zone layouts 8308 | -7/Scraptown | Learned 12 Proximity Caves zone layouts 8308 | -7/Scraptown | Learned 16 Proximity Caves zone layouts 8308 | -7/Scraptown | Learned 24 Proximity Caves zone layouts 8308 | -7/Scraptown | Learned Research emergency access door positions 8308 | -7/Scraptown | Learned location of 1 exit from Factory 8308 | -7/Scraptown | Learned location of 1 exit from Lower Caves 8308 | -7/Scraptown | Learned location of 3 exits from Proximity Caves 8348 | -7/Scraptown | Discovered new exit (range 5) 8428 | -7/Scraptown | Build established: Derelict-Mutant 8503 | -7/Scraptown | Met Optimus 8503 | -7/Scraptown | Accepted into 0bPrime 8525 | -7/Scraptown | Identified exit to Factory 8526 | -7/Scraptown | Entered Factory 8526 | -5/Factory | Evolved 4 slots: Power x1, Propulsion x2, Utility x1 8527 | -5/Factory | Identified exit to Extension 8753 | -5/Factory | Garrison activated, responded to threat 8817 | -5/Factory | Loaded intel: 8 recycling unit locations 8858 | -5/Factory | Learned location of Protoforge (-3) 9225 | -5/Factory | Discovered new exit (range 10) 9229 | -5/Factory | Identified exit to Factory 9283 | -5/Factory | Repaired Gauss Rifle 9402 | -5/Factory | Manually triggered Chute Trap 9402 | -5/Factory | Sucked down chute 9402 | -5/Factory | Entered Waste 9405 | -5/Waste | Spotted C-40 Crusher 9409 | -5/Waste | Spotted C-40 Crusher 9415 | -5/Waste | Spotted C-40 Crusher 9415 | -5/Waste | Spotted C-40 Crusher 9416 | -5/Waste | Discovered new exit (range 16) 9417 | -5/Waste | EMP discharged 9432 | -5/Waste | Identified exit to Factory 9433 | -5/Waste | Entered Factory 9501 | -5/Factory | Identified exit to Upper Caves 9658 | -5/Factory | Loaded intel: 8 recycling unit locations 9736 | -5/Factory | Discovered exit to Factory (range 10) 9751 | -5/Factory | Build established: Mutant 9803 | -5/Factory | Discovered exit to Factory (range 15) 9880 | -5/Factory | Scraphulk reinforcements arrived? 9943 | -5/Factory | Destroyed 7 combat bots 9950 | -5/Factory | Lost 4 parts (1p2n1u) 10071 | -5/Factory | Entered Upper Caves 10071 | -5/Upper Caves | Accompanied by 1 ally 10072 | -5/Upper Caves | Identified exit to Upper Caves 10104 | -5/Upper Caves | Encountered a Warlord checkpoint 10129 | -5/Upper Caves | Activated DRS Beacon 10315 | -5/Upper Caves | Attracted the attention of an 0b10 base 10536 | -5/Upper Caves | Build established: Scavenger-Gunner 10843 | -5/Upper Caves | Build established: Scavenger-Mutant 10858 | -5/Upper Caves | Entered another Upper Caves area 10858 | -5/Upper Caves | Accompanied by 1 ally 10859 | -5/Upper Caves | Discovered new exit (range 115) 10872 | -5/Upper Caves | Entered a destroyed Warlord outpost 11131 | -5/Upper Caves | Identified exit to Zhirov 11143 | -5/Upper Caves | Entered Zhirov 11143 | -5/Zhirov | Accompanied by 1 ally 11143 | -5/Zhirov | Discovered new exit (range 3) 11144 | -5/Zhirov | Identified exit to Proximity Caves 11154 | -5/Zhirov | Met Zhirov 11165 | -5/Zhirov | Learned location of Quarantine (-3) 11165 | -5/Zhirov | Learned location of Testing (-2) 11165 | -5/Zhirov | Learned location of Command (-1) 11168 | -5/Zhirov | Zhirov requested help retrieving the SGEMP Prototype 11181 | -5/Zhirov | Found Alien Artifact 11181 | -5/Zhirov | Identified Integrated Reactor 11181 | -5/Zhirov | Installed Integrated Reactor, increased core energy generation (+10) 11226 | -5/Zhirov | Found Alien Artifact 11252 | -5/Zhirov | Entered Proximity Caves 11252 | -4/Proximity Caves | Accompanied by 1 ally 11525 | -4/Proximity Caves | System corruption reached 10% 11686 | -4/Proximity Caves | Learned 12 Research zone layouts 11786 | -4/Proximity Caves | Entered Factory 11786 | -4/Factory | Accompanied by 1 ally 11786 | -4/Factory | Evolved 2 slots: Utility x2 11787 | -4/Factory | Identified exit to Research 11852 | -4/Factory | Destroyed 9 combat bots 11976 | -4/Factory | Repaired Exp. Sensor Array? 11989 | -4/Factory | Lost 4 parts (3n1u) 12419 | -4/Factory | Loaded intel: 8 recycling unit locations 12438 | -4/Factory | Spotted B-86 Titan 12539 | -4/Factory | Garrison activated, responded to threat 12580 | -4/Factory | Discovered new exit (range 3) 12581 | -4/Factory | Identified exit to Upper Caves 12623 | -4/Factory | Destroyed 16 combat bots 12697 | -4/Factory | Identified Transdimensional Reconstructor 12697 | -4/Factory | Warped through subspace 12700 | -4/Factory | Core integrity fell below 50% 12734 | -4/Factory | Lost 22 parts (3p7n5u7w) 12841 | -4/Factory | Lost 3 parts (2p1u) 13071 | -4/Factory | Found Imp. Powered Armor 13286 | -4/Factory | First assault squad dispatched 13352 | -4/Factory | Build established: Scavenger-Tank 13355 | -4/Factory | System corruption reached 10% 13504 | -4/Factory | Core integrity fell below 20% 13543 | -4/Factory | Lost 5 parts (2p2u1w) 13545 | -4/Factory | Destroyed 9 combat bots 13656 | -4/Factory | Sucked down chute 13656 | -4/Factory | Entered Waste 13684 | -4/Waste | Spotted C-40 Crusher 13694 | -4/Waste | Spotted C-40 Crusher 13700 | -4/Waste | Spotted C-40 Crusher 13701 | -4/Waste | Warlord forces began an assault 13710 | -4/Waste | Allies destroyed C-40 Crusher 13736 | -4/Waste | Spotted C-40 Crusher 13737 | -4/Waste | Spotted C-40 Crusher 13739 | -4/Waste | Spotted C-40 Crusher 13759 | -4/Waste | Allies destroyed C-40 Crusher 13760 | -4/Waste | Allies destroyed C-40 Crusher 13760 | -4/Waste | Allies destroyed C-40 Crusher 13784 | -4/Waste | Build established: Scavenger-Mutant 13791 | -4/Waste | Lost 5 allies 13885 | -4/Waste | Destroyed C-40 Crusher 13907 | -4/Waste | Allies destroyed C-40 Crusher 13936 | -4/Waste | Lost 5 allies 13987 | -4/Waste | Found Gamma Bomb Array 14020 | -4/Waste | Found Broken Fusion Bomb Launcher 14039 | -4/Waste | Found Broken Gamma Bomb Array 14082 | -4/Waste | Discovered new exit (range 16) 14090 | -4/Waste | Build established: Tank 14177 | -4/Waste | Identified exit to Factory 14202 | -4/Waste | Entered Factory 14202 | -4/Factory | Accompanied by 9 allies 14257 | -4/Factory | Loaded intel: 8 recycling unit locations 14413 | -4/Factory | Lost 5 allies 14656 | -4/Factory | Lost 3 allies 14777 | -4/Factory | Discovered exit to Upper Caves (range 15) 14931 | -4/Factory | Found Imp. Powered Armor 14948 | -4/Factory | Fabricated Exp. Sensor Array? 14989 | -4/Factory | Build established: Scavenger-Tank 15041 | -4/Factory | Entered Upper Caves 15042 | -4/Upper Caves | Identified exit to Upper Caves 15121 | -4/Upper Caves | Attracted the attention of an 0b10 outpost 15159 | -4/Upper Caves | Destroyed 8 combat bots 15676 | -4/Upper Caves | Acquired the password to a Derelict Tinkerer's latest research 15687 | -4/Upper Caves | Found Molecular Deconstructor 15756 | -4/Upper Caves | Entered another Upper Caves area 15756 | -4/Upper Caves | Accompanied by 1 ally 15780 | -4/Upper Caves | Discovered exit to Research (range 7) 15998 | -4/Upper Caves | Build established: Tank 16283 | -4/Upper Caves | Entered Research 16283 | -3/Research | Accompanied by 1 ally 16283 | -3/Research | Evolved 2 slots: Power x1, Utility x1 16284 | -3/Research | Identified exit to Quarantine 16528 | -3/Research | Loaded intel: 5 recycling unit locations 16600 | -3/Research | Build established: Scavenger-Tank 16820 | -3/Research | Destroyed 8 combat bots 16868 | -3/Research | Mak. System Shield fried by hacking feedback 16894 | -3/Research | Discovered exit to Quarantine (range 8) 16896 | -3/Research | Entered Quarantine 16899 | -3/Quarantine | Lost 15 parts (1p3n8u3w) 16903 | -3/Quarantine | Found Alien Artifact 16904 | -3/Quarantine | Identified Subatomic Replicator 16937 | -3/Quarantine | Found Unknown Launcher 16937 | -3/Quarantine | Identified Gamma Bomb Array 16970 | -3/Quarantine | Used Subatomic Replicator to create Alien Artifact 17058 | -3/Quarantine | Found Alien Artifact 17096 | -3/Quarantine | Garrison activated, responded to threat 17248 | -3/Quarantine | Found Alien Slashing Weapon 17248 | -3/Quarantine | Identified Sigix Broadsword 17337 | -3/Quarantine | Spotted Fortress 17358 | -3/Quarantine | Discovered new exit (range 6) 17358 | -3/Quarantine | Discovered new exit (range 7) 17409 | -3/Quarantine | Build established: Sprinter 17462 | -3/Quarantine | Identified exit to Protoforge 17465 | -3/Quarantine | Entered Protoforge 17552 | -3/Protoforge | Superfortress began startup sequence 17577 | -3/Protoforge | Spotted AP7-3 17577 | -3/Protoforge | Spotted AP7-3 17627 | -3/Protoforge | Spotted Overlord 17649 | -3/Protoforge | Spotted EXE-6 17665 | -3/Protoforge | UFD initiated attack on Protoforge 17665 | -3/Protoforge | Loaded intel: 3 recycling unit locations 17703 | -3/Protoforge | Optimus greeted in Protoforge 17719 | -3/Protoforge | Found Scrap Suit 17725 | -3/Protoforge | Spotted Decapitator 17728 | -3/Protoforge | P-80 Master assimilated allied KL-O5O(E) 17741 | -3/Protoforge | Found Prototype Ballistic Gun 17741 | -3/Protoforge | Identified Cep. XC Strikerail 17746 | -3/Protoforge | Found Cep. XC Strikerail 17748 | -3/Protoforge | Found Prototype Processor 17748 | -3/Protoforge | Identified Exp. Armor Integrity Analyzer 17765 | -3/Protoforge | Lost 10 allies 17765 | -3/Protoforge | Found Prototype Device 17765 | -3/Protoforge | Identified Exp. Kinecellerator 17781 | -3/Protoforge | Identified Dimensional Node Initializer 17781 | -3/Protoforge | Initialized slip node 17796 | -3/Protoforge | Met 7R-MNS 17840 | -3/Protoforge | Found Prototype Device 17840 | -3/Protoforge | Identified Exp. Trap Extractor 17907 | -3/Protoforge | Identified Supercharged TR 17907 | -3/Protoforge | Warped through subspace to slip node 17913 | -3/Protoforge | Optimus attacked Superfortress 17921 | -3/Protoforge | Spotted Executioner 17921 | -3/Protoforge | Spotted Hotshot 17927 | -3/Protoforge | Spotted Immortal 17954 | -3/Protoforge | Found Exp. Core Analyzer 17961 | -3/Protoforge | Lost 12 allies 18061 | -3/Protoforge | Found Prototype Slashing Weapon 18061 | -3/Protoforge | Identified Exp. Terror Saw 18063 | -3/Protoforge | Spotted Executioner 18081 | -3/Protoforge | Destroyed Executioner 18081 | -3/Protoforge | Spotted Executioner 18100 | -3/Protoforge | Spotted Striker 18106 | -3/Protoforge | UFD reported confirmed Drillbomb installation 18121 | -3/Protoforge | Destroyed Striker 18124 | -3/Protoforge | Spotted Executioner 18135 | -3/Protoforge | Destroyed Executioner 18148 | -3/Protoforge | Spotted Hotshot 18148 | -3/Protoforge | Found Exp. Core Analyzer 18152 | -3/Protoforge | Spotted Hotshot 18153 | -3/Protoforge | Spotted Hotshot 18154 | -3/Protoforge | Spotted Hotshot 18187 | -3/Protoforge | Spotted V908-v 18190 | -3/Protoforge | Build established: Scavenger-Scrapper 18204 | -3/Protoforge | Destroyed V908-v 18204 | -3/Protoforge | System corruption reached 10% 18224 | -3/Protoforge | Destroyed Hotshot 18230 | -3/Protoforge | Destroyed Hotshot 18236 | -3/Protoforge | Destroyed Hotshot 18242 | -3/Protoforge | Destroyed Hotshot 18264 | -3/Protoforge | Lost 5 parts (1p3u1w) 18337 | -3/Protoforge | Core integrity fell below 50% 18392 | -3/Protoforge | Spotted Executioner 18392 | -3/Protoforge | UFD reported confirmed Drillbomb installation 18399 | -3/Protoforge | Spotted Executioner 18434 | -3/Protoforge | Lost 5 parts (4u1w) 18483 | -3/Protoforge | Found Scrap Suit 18505 | -3/Protoforge | Lost 3 allies 18589 | -3/Protoforge | Spotted Striker 18590 | -3/Protoforge | Spotted Striker 18591 | -3/Protoforge | Spotted Striker 18591 | -3/Protoforge | Destroyed Striker 18601 | -3/Protoforge | Destroyed Striker 18618 | -3/Protoforge | Spotted Executioner 18620 | -3/Protoforge | Spotted Executioner 18621 | -3/Protoforge | Destroyed Executioner 18622 | -3/Protoforge | Spotted Executioner 18623 | -3/Protoforge | Spotted Executioner 18626 | -3/Protoforge | Spotted Executioner 18630 | -3/Protoforge | Destroyed Executioner 18632 | -3/Protoforge | Destroyed Executioner 18646 | -3/Protoforge | Spotted Striker 18653 | -3/Protoforge | Spotted Striker 18660 | -3/Protoforge | Destroyed 11 combat bots 18672 | -3/Protoforge | Spotted Executioner 18674 | -3/Protoforge | Spotted Striker 18674 | -3/Protoforge | Destroyed Striker 18677 | -3/Protoforge | Lost 14 allies 18698 | -3/Protoforge | Spotted Executioner 18698 | -3/Protoforge | Spotted Striker 18744 | -3/Protoforge | Spotted Hotshot 18756 | -3/Protoforge | Spotted Striker 18757 | -3/Protoforge | Spotted Executioner 18766 | -3/Protoforge | Lost 5 allies 18767 | -3/Protoforge | Spotted Striker 18768 | -3/Protoforge | Spotted Executioner 18775 | -3/Protoforge | Destroyed Striker 18784 | -3/Protoforge | Triborg destroyed during the operation 18784 | -3/Protoforge | Optimus emerged from Triborg 18789 | -3/Protoforge | Spotted Executioner 18792 | -3/Protoforge | Core integrity fell below 20% 18822 | -3/Protoforge | UFD reported confirmed Drillbomb installation 18825 | -3/Protoforge | Lost 7 allies 18834 | -3/Protoforge | Lost 4 parts (1p3u) 18835 | -3/Protoforge | Spotted Striker 18839 | -3/Protoforge | Spotted B-86 Titan 18840 | -3/Protoforge | Spotted Striker 18845 | -3/Protoforge | Spotted Executioner 18846 | -3/Protoforge | Spotted Striker 18871 | -3/Protoforge | Spotted Executioner 18876 | -3/Protoforge | Spotted Executioner 18881 | -3/Protoforge | Destroyed Executioner 18908 | -3/Protoforge | Lost 8 allies 18995 | -3/Protoforge | Spotted Striker 18998 | -3/Protoforge | Spotted Executioner 19194 | -3/Protoforge | Found 0bPrime Scrap Suit 19222 | -3/Protoforge | Spotted Executioner 19240 | -3/Protoforge | Destroyed 10 combat bots 19393 | -3/Protoforge | Spotted Striker 19395 | -3/Protoforge | Spotted Striker 19400 | -3/Protoforge | Destroyed Striker 19402 | -3/Protoforge | Spotted Striker 19443 | -3/Protoforge | Spotted Striker 19445 | -3/Protoforge | Spotted Striker 19470 | -3/Protoforge | Spotted Executioner 19478 | -3/Protoforge | Spotted Striker 19492 | -3/Protoforge | Spotted Executioner 19494 | -3/Protoforge | Spotted Striker 19515 | -3/Protoforge | Spotted Executioner 19516 | -3/Protoforge | Destroyed 03F27-K 19522 | -3/Protoforge | Spotted Striker 19522 | -3/Protoforge | Destroyed by Executioner with Helical Railgun Last Messages --------------- 19513_ Slug penetrates 03F27-K. 19514_ HV Slug penetrates G-67 Veteran. 19514_ Slug penetrates Executioner. 19515_ N9-ZLE(j) suffers critical hit (Burn). 19516_ Slug penetrates Earth. 19516_ Slug penetrates Wall. 19516_ Penetrated by Slug. 19516_ 03F27-K suffers critical hit (Destroy). 19516_ 03F27-K destroyed. 19516_ Penetrated by Slug. 19517_ N-04 Retriever collects Mak. Thermal Plating. 19518_ System corrupted: Matter fused (-7). 19518_ N-04 Retriever collects Mak. Coolant Network. 19519_ Penetrated by Slug. 19520_ N-04 Retriever collects Corrupted Plasma Rifle. 19520_ G-67 Veteran destroyed. 19520_ N9-ZLE(j) destroyed. 19522_ Penetrated by Slug. 19522_ Sigix Broadsword destroyed. 19522_ Penetrated by Slug. Map ----- +----------------------------------------------------+ | #????????????????????## #### ##????????????????? | | #????????????????????##% %#### ##????????????????? | | #????????????????????##% %#### ##????????????????? | | #????????????????????## % #### ###???????????????? | | #????????????????????#" % #### # ##??????????????? | | #???????????????????# # # ##+#"##??????????????? | | #??????????????????# ## % ##??????????????? | | #??????????????????#### # """" ##??????????????? | | #??????????????????#### # """" ##??????????????? | | #??????????????????# ## " " " ####????????????? | | #????? ?##????####### # " ! ]" ## ###########??? | | ####### # ??#########;% + %%= # ############??? | | ####""## ### ; ##;!/;#;## ##??? | | # # # ; !! ;# ; % ###""" """" ##??? | | # " ;;;;";;;# ! *%% ; ; !;##""" """" ##### | | # "= ;=&! ; ]%/#/*!#!!#;; %; #" "" " ## | | " =%;![%!!%*; !;=*!!=%[=; %; ; # | | " !/%===[[[!# & ;#%!![ ; % ; " | | " *%*!=%=!=% *!=|==![ ;;! ; ; | | "" ==[%*=!!!%=![!=!! ;;%=%%& % %; | | *! =!=![!=! !==*!=!*!!!* % % %%%%;;;;%;;;#;""%" | | =*%|%%/=!=!!%[*%[%!%&%%%%%%% %%%%%%%%%% %%%%%%%%%% | | =%*%!/!!%%!!%%[%%!%%%%&%%n%%m%%%%%% %%%%%%%% S% % | | %[%%%%%=![%%%%g%%%%%%%%%%%%%&% % %% %%% %% %%%S %% | | %%%%%*!%%%%%%%EE!%=%!%% "%% % %%;%%&%%%;%;%;;;"" | | *%!*%%%%%%%&!=%%!==%%*=%]@% ;% ;!=| ## # | | !!=[[/=![!=[!!g!!/!=!!= % ;; ;=!!*! % ### # | | %=[ *%==&%%%!/*=[%*[[|=**=!;;; ; ; ;##### | | != =!%!=*!%=!=*!=![!==[!=!; ;E## # % ##???? | | #["" %!== [ #!=/*=!%!== ; ##K### # ##???? | | #!""" ;= %"### != ; # ####" ##???? | | #! ! #### ;### ##?## ##???? | | # !!" ^ "# ; #### ##?## ##???? | | #+#####" *## # #### ##?## ##???? | | ?????? "% ; #; #### ####"""########???? | | ????? " !!### #;;##+#####;### ###"""#########???? | | ???? #%% #####;# ##### " ##??????? | | ???" " " ##### "" " " " " ##??????? | | ?? " "T [%!T + " " " ##??????? | | ??"" #= ##### # " " " ##??????? | | ?""" ?#[[["#;#### ##### # ##??????? | | ???" ?#!=%=######## ####?### ###########??????? | | ??? ???#[ ="#???#### ####?### #??????####??????? | | ######## % ##?????## ##????## #??????##????????? | | ######## ##?????## ##????## +??????##????????? | | ??????## ##?????## ##????## #??????##????????? | | ######## ##????### ######## #??????##????????? | | ######## ##????###+######## #??????##????????? | | # # ##????## ## #########????????? | | # "" # ######## ## #########????????# | +----------------------------------------------------+ Best States ------------- Heat Dissipation 119 Coolant Potential 120 Energy Generation 63 Energy Capacity 2950 Matter Stores 300 Matter Capacity 300 Sight Range 23 Robot Scan Range 20 Terrain Scan Range 14 Terrain Scan Density 110 Jamming Range 16 Cloak Strength 3 Power Amplification 30 Corruption Containment 12 Armor Coverage 1250 Resistance: KI 20 Resistance: TH 15 Resistance: EM 15 Core Shielding 30 Propulsion Shielding 90 Weapon Shielding 90 Phase Shifting 10 Evasion (%) 71 Targeting Accuracy 8 Target Analysis 8 Core Analysis 12 Armor Integrity Analysis 50 Recoil Reduction 3 Particle Charging 25 Kinecelleration 66 Offensive Hacking 10 Defensive Hacking 14 Authchip Count 1 Item Schematics ----------------- Exp. Sensor Array | -8/Materials | Scanalyzed Plasma Cutter | -8/Materials | Scanalyzed Imp. Grenade Launcher | -8/Materials | Scanalyzed Cld. Deuterium Engine | -7/Factory | Scanalyzed Assault Drone Bay | -5/Zhirov | Free Exp. Heat Sink | -5/Zhirov | Free Exp. Optical Array | -5/Zhirov | Free Imp. Arc Thrower | -5/Zhirov | Free Robot Schematics ------------------ None Fabricated ------------ Y-54 Guardian | x2 | -7/Factory | Preloaded Exp. Sensor Array | x1 | -7/Factory | Authchip Exp. Sensor Array | x1 | -4/Factory Repaired ---------- Lgt. Treads | 65% | -10/Materials Adv. Beam Cannon | 51% | -9/Materials Gauss Rifle | 26% | -5/Factory Exp. Sensor Array | 6% | -4/Factory Alien Tech Used ----------------- Integrated Reactor Transdimensional Reconstructor Subatomic Replicator Sigix Broadsword Dimensional Node Initializer Supercharged TR Achievements -------------- None Challenges ------------ None Game ------ Seed VariableWarpEngine Manual? 0 Play Time 03:24:33 Cumulative 1873.7 hours Start 2025.06.24 @ 00:20:05 End 2025.06.24 @ 03:47:22 Sessions 1 Manual Loads 0 Difficulty Rogue Special Mode None Game No. 1247 Rogue 1243 Adventurer 4 Explorer 0 Win Type - Total 241 Types 180/11/19/10/3/1/4/8/4/1 Lore% 98 Gallery% 94 Achievement% 98 Wizard Run 0 Options --------- Layout 2 ASCII 0 Keyboard 1 Movement Vi Keybinds 0 Fullscreen 0 Font 24/Terminus Map View 59x48 Zoom Use 0% Tactical HUD 1 Map Filters NONE Filters NONE Steam 1 RUN: d2603bcf-1697-44ea-8375-202aae45761c